[Event "FIDE WYCC Girls U14 2023"]
[Site "Montesilvano"]
[Date "2023.11.23"]
[Round "10.34"]
[White "Blauhut, Anna"]
[Black "Namala, Dhanvi"]
[Result "1-0"]
[ECO "C00"]
[WhiteElo "1640"]
[BlackElo "1388"]
[Annotator "NA"]
[PlyCount "63"]
[EventDate "2023.11.13"]
[EventType "swiss"]
[EventCountry "ITA"]
[SourceTitle "playchess.com"]
[Source "ChessBase"]
[SourceQuality "1"]
[TimeControl "40/5400+30:1800+30"]

1. e4 {[%emt 0:00:10]} e6 {[%emt 0:00:02]} 2. b3 {[%emt 0:00:19]} Nf6 {[%emt 0:01:26]} 3. Nc3 {[%emt 0:01:43]} d5 {[%emt 0:01:36]} 4. e5 {[%emt 0:02:24]} Nfd7 {[%emt 0:00:14]} 5. f4 {[%emt 0:01:13]} b6 {[%emt 0:01:31]} 6. Nf3 {[%emt 0:02:27]} Bb7 {[%emt 0:02:30]} 7. Bb2 {[%emt 0:02:22]} Be7 {[%emt 0:01:18]} 8. Qe2 a6 {[%emt 0:02:14]} 9. g4 {[%emt 0:05:31]} c5 {[%emt 0:05:14]} 10. Bg2 {[%emt 0:03:16]} Nc6 {[%emt 0:02:18]} 11. O-O-O {[%emt 0:03:17]} b5 {[%emt 0:02:17]} 12. Rdf1 {[%emt 0:05:07]} Qb6 {[%emt 0:02:39]} 13. f5 {[%emt 0:10:45]} c4 {[%emt 0:03:07]} 14. Nxd5 {[%emt 0:07:35]} exd5 {[%emt 0:04:00]} 15. f6 {[%emt 0:02:30]} cxb3 {[%emt 0:11:39]} 16. axb3 {[%emt 0:01:00]} Rc8 {[%emt 0:03:22]} 17. fxg7 {[%emt 0:05:15]} Rg8 {[%emt 0:01:23]} 18. e6 {[%emt 0:00:36]} Nc5 {[%emt 0:12:45]} 19. exf7+ {[%emt 0:00:36]} Kxf7 {[%emt 0:00:57]} 20. Nh4+ {[%emt 0:03:46]} Ke8 {[%emt 0:00:49]} 21. Bxd5 {[%emt 0:00:48]} Nd4 {[%emt 0:02:06]} 22. Bf7+ {[%emt 0:08:54]} Kd8 {[%emt 0:02:51]} 23. Bxd4 {[%emt 0:02:19]} Nxb3+ {[%emt 0:05:16]} 24. Bxb3 {[%emt 0:01:03]} Qxd4 {[%emt 0:00:37]} 25. Qxe7+ {[%emt 0:01:04]} Kxe7 {[%emt 0:01:00]} 26. Nf5+ {[%emt 0:00:05]} Kd8 {[%emt 0:04:36]} 27. Nxd4 {[%emt 0:00:12]} Bxh1 {[%emt 0:01:54]} 28. Rf8+ {[%emt 0:00:58]} Ke7 {[%emt 0:00:36]} 29. Nf5+ {[%emt 0:00:24]} Kd7 {[%emt 0:00:24]} 30. Bxg8 {[%emt 0:00:49]} Rc5 {[%emt 0:01:04]} 31. Be6+ {[%emt 0:00:13]} Kxe6 {[%emt 0:00:15]} 32. g8=Q+ 1-0

[Event "FIDE WYCC Girls U14 2023"]
[Site "Montesilvano"]
[Date "2023.11.23"]
[Round "10.35"]
[White "Dukic, Teona"]
[Black "Stankovic, Andrea"]
[Result "*"]
[ECO "E00"]
[WhiteElo "1343"]
[BlackElo "1768"]
[Annotator "NA RC"]
[PlyCount "64"]
[EventDate "2023.11.13"]
[EventType "swiss"]
[EventCountry "ITA"]
[SourceTitle "playchess.com"]
[Source "ChessBase"]
[SourceQuality "1"]
[TimeControl "40/5400+30:1800+30"]

1. d4 {[%emt 0:00:01]} e6 {[%emt 0:00:06]} 2. c4 {[%emt 0:00:07]} Nf6 {[%emt 0:00:05]} 3. Nf3 {[%emt 0:00:10]} Bb4+ {[%emt 0:00:07]} 4. Bd2 {[%emt 0:00:09]} Qe7 {[%emt 0:00:12]} 5. Qc2 {[%emt 0:02:52]} Bxd2+ {[%emt 0:02:40]} 6. Qxd2 {[%emt 0:00:11]} d6 {[%emt 0:00:18]} 7. Nc3 {[%emt 0:02:07]} c6 {[%emt 0:00:43]} 8. e3 {[%emt 0:02:10]} e5 {[%emt 0:00:15]} 9. d5 {[%emt 0:08:08]} e4 {[%emt 0:00:44]} 10. Nd4 {[%emt 0:00:47]} c5 {[%emt 0:03:45]} 11. Nc2 {[%emt 0:01:04]} Bf5 {[%emt 0:03:55]} 12. Be2 {[%emt 0:02:28]} Nbd7 {[%emt 0:00:34]} 13. O-O {[%emt 0:01:03]} O-O {[%emt 0:00:19]} 14. Rfe1 {[%emt 0:05:17]} Rfe8 {[%emt 0:03:20]} 15. Nb5 {[%emt 0:04:55]} Ne5 {[%emt 0:00:42]} 16. f4 {[%emt 0:08:23]} exf3 {[%emt 0:25:53]} 17. gxf3 {[%emt 0:02:50]} a6 {[%emt 0:02:21]} 18. Nc3 {[%emt 0:01:00]} Nh5 {[%emt 0:04:29]} 19. f4 {[%emt 0:17:53]} Ng4 {[%emt 0:00:29]} 20. Bxg4 {[%emt 0:09:34]} Bxg4 {[%emt 0:00:17]} 21. e4 {[%emt 0:02:50]} Qh4 {[%emt 0:00:36]} 22. Rf1 {[%emt 0:08:05]} f5 {[%emt 0:03:00]} 23. Rae1 {[%emt 0:01:25]} Bh3 {[%emt 0:03:01]} 24. Rf2 {[%emt 0:00:53]} fxe4 {[%emt 0:01:34]} 25. Nxe4 {[%emt 0:01:03]} Rf8 {[%emt 0:02:33]} 26. Nxd6 {[%emt 0:04:03]} Nxf4 {[%emt 0:00:52]} 27. Re4 {[%emt 0:03:32]} g5 {[%emt 0:04:22]} 28. Re1 {[%emt 0:03:11]} Bf5 {[%emt 0:05:01]} 29. Kh1 {[%emt 0:01:52]} Bxc2 {[%emt 0:02:48]} 30. Qxc2 {[%emt 0:00:48]} Nd3 {[%emt 0:00:10]} 31. Rxf8+ {[%emt 0:00:36]} Rxf8 {[%emt 0:00:07]} 32. Rd1 {[%emt 0:05:38]} Rf2 {[%emt 0:01:45]} *

[Event "FIDE WYCC Girls U14 2023"]
[Site "Montesilvano"]
[Date "2023.11.24"]
[Round "11.1"]
[White "Jiang, Tianyu"]
[Black "Shukhman, Anna"]
[Result "1/2-1/2"]
[ECO "B43"]
[WhiteElo "1917"]
[BlackElo "2263"]
[Annotator "RC"]
[PlyCount "124"]
[EventDate "2023.11.13"]
[EventType "swiss"]
[EventCountry "ITA"]
[SourceTitle "playchess.com"]
[Source "ChessBase"]
[SourceQuality "1"]
[TimeControl "40/5400+30:1800+30"]

1. e4 {[%emt 0:00:03]} c5 {[%emt 0:00:04]} 2. Nf3 {[%emt 0:00:15]} e6 {[%emt 0:00:04]} 3. Nc3 {[%emt 0:00:31]} a6 {[%emt 0:00:50]} 4. d4 {[%emt 0:00:07]} cxd4 {[%emt 0:00:02]} 5. Nxd4 {[%emt 0:00:05]} b5 {[%emt 0:00:02]} 6. Bd3 {[%emt 0:00:58]} Bb7 {[%emt 0:00:03]} 7. O-O {[%emt 0:00:16]} Nc6 {[%emt 0:00:03]} 8. Nxc6 {[%emt 0:00:10]} Bxc6 {[%emt 0:00:03]} 9. Re1 {[%emt 0:00:29]} Qb8 {[%emt 0:00:03]} 10. a4 {[%emt 0:01:53]} bxa4 {[%emt 0:00:03]} 11. Nxa4 {[%emt 0:00:05]} Bd6 12. h3 {[%emt 0:14:57]} Ne7 {[%emt 0:02:57]} 13. Be3 {[%emt 0:03:05]} Bh2+ {[%emt 0:00:04]} 14. Kh1 {[%emt 0:00:06]} Bf4 {[%emt 0:00:03]} 15. Bxf4 {[%emt 0:20:12]} Qxf4 {[%emt 0:00:07]} 16. Qe2 {[%emt 0:00:20]} O-O {[%emt 0:15:34]} 17. Qe3 {[%emt 0:04:35]} Qxe3 {[%emt 0:11:19]} 18. Rxe3 {[%emt 0:01:14]} a5 {[%emt 0:00:02]} 19. Ree1 {[%emt 0:05:16]} Rfb8 {[%emt 0:12:44]} 20. b3 {[%emt 0:01:30]} f6 {[%emt 0:08:34]} 21. Nc3 {[%emt 0:09:46]} Ng6 {[%emt 0:03:08]} 22. Ra2 {[%emt 0:03:56]} Ne5 {[%emt 0:10:26]} 23. Bf1 {[%emt 0:01:34]} g5 {[%emt 0:00:03]} 24. f3 {[%emt 0:06:14]} Rc8 {[%emt 0:01:26]} 25. Rd1 {[%emt 0:07:21]} Kf8 {[%emt 0:08:16]} 26. Nb5 {[%emt 0:10:07]} h5 {[%emt 0:17:37]} 27. Nd4 {[%emt 0:03:00]} g4 {[%emt 0:03:09]} 28. hxg4 {[%emt 0:01:49]} hxg4 {[%emt 0:00:03]} 29. f4 {[%emt 0:00:43]} Bxe4 {[%emt 0:02:24]} 30. fxe5 {[%emt 0:00:33]} fxe5 {[%emt 0:00:02]} 31. Nb5 {[%emt 0:00:48]} Ke7 {[%emt 0:00:13]} 32. Bd3 {[%emt 0:01:47]} Bc6 {[%emt 0:00:53]} 33. Kh2 {[%emt 0:00:10]} g3+ {[%emt 0:00:12]} 34. Kxg3 {[%emt 0:02:56]} Rg8+ {[%emt 0:00:03]} 35. Kf2 {[%emt 0:00:19]} Rxg2+ {[%emt 0:00:04]} 36. Ke1 {[%emt 0:00:42]} Rh8 {[%emt 0:00:03]} 37. Bf1 {[%emt 0:00:22]} Rh1 {[%emt 0:00:16]} 38. Nc3 {[%emt 0:00:24]} e4 {[%emt 0:00:24]} 39. Rxa5 {[%emt 0:00:31]} e3 {[%emt 0:00:24]} 40. Rh5 {[%emt 0:00:00]} Rxh5 {[%emt 0:00:00]} 41. Bxg2 {[%emt 0:01:49]} Bxg2 {[%emt 0:03:45]} 42. Ke2 {[%emt 0:07:13]} Rh3 {[%emt 0:16:31]} 43. Rd3 {[%emt 0:10:31]} d5 {[%emt 0:00:04]} 44. Rxe3 {[%emt 0:01:45]} Rh2 {[%emt 0:00:07]} 45. Kd3 {[%emt 0:04:23]} Kd6 {[%emt 0:00:04]} 46. Re1 {[%emt 0:05:07]} Bh3 {[%emt 0:00:56]} 47. Nb5+ {[%emt 0:01:19]} Ke7 {[%emt 0:00:55]} 48. c4 {[%emt 0:01:27]} Bf5+ {[%emt 0:00:42]} 49. Kd4 {[%emt 0:00:17]} Rd2+ {[%emt 0:00:56]} 50. Kc5 {[%emt 0:00:20]} Kf6 {[%emt 0:00:04]} 51. Nd4 {[%emt 0:00:36]} dxc4 {[%emt 0:00:40]} 52. bxc4 {[%emt 0:00:26]} Bh3 {[%emt 0:02:23]} 53. Re3 {[%emt 0:00:52]} Bg4 {[%emt 0:00:06]} 54. Re4 {[%emt 0:00:40]} Bf5 {[%emt 0:00:17]} 55. Re1 {[%emt 0:00:06]} Rd3 {[%emt 0:00:18]} 56. Re2 {[%emt 0:01:19]} Bh3 {[%emt 0:01:10]} 57. Rf2+ {[%emt 0:00:04]} Bf5 {[%emt 0:00:34]} 58. Nxf5 {[%emt 0:00:19]} exf5 {[%emt 0:00:03]} 59. Kb6 {[%emt 0:00:12]} Rb3+ {[%emt 0:00:35]} 60. Ka6 {[%emt 0:00:33]} Ke5 {[%emt 0:00:32]} 61. c5 {[%emt 0:00:12]} Rc3 {[%emt 0:00:19]} 62. Kb6 {[%emt 0:00:09]} Rb3+ {[%emt 0:00:13]} 1/2-1/2

[Event "FIDE WYCC Girls U14 2023"]
[Site "Montesilvano"]
[Date "2023.11.24"]
[Round "11.2"]
[White "Mou, Iris"]
[Black "Natoli, Alessia"]
[Result "1-0"]
[ECO "B30"]
[WhiteElo "2086"]
[BlackElo "1756"]
[Annotator "NA RC"]
[PlyCount "53"]
[EventDate "2023.11.13"]
[EventType "swiss"]
[EventCountry "ITA"]
[SourceTitle "playchess.com"]
[Source "ChessBase"]
[SourceQuality "1"]
[TimeControl "40/5400+30:1800+30"]

1. e4 {[%emt 0:00:03]} c5 {[%emt 0:00:13]} 2. Nf3 {[%emt 0:00:09]} Nc6 {[%emt 0:00:20]} 3. Bb5 {[%emt 0:00:14]} e6 {[%emt 0:00:26]} 4. Bxc6 {[%emt 0:03:14]} bxc6 {[%emt 0:00:15]} 5. O-O {[%emt 0:02:13]} Ne7 {[%emt 0:03:23]} 6. b3 {[%emt 0:06:03]} f6 {[%emt 0:02:11]} 7. h4 {[%emt 0:02:00]} e5 {[%emt 0:06:34]} 8. c3 {[%emt 0:12:06]} d5 {[%emt 0:05:26]} 9. Qe2 {[%emt 0:09:38]} a5 {[%emt 0:05:49]} 10. d3 {[%emt 0:04:45]} a4 {[%emt 0:08:14]} 11. bxa4 {[%emt 0:09:41]} c4 {[%emt 0:04:07]} 12. dxc4 {[%emt 0:05:12]} Rxa4 {[%emt 0:08:19]} 13. cxd5 {[%emt 0:01:43]} Ba6 {[%emt 0:02:02]} 14. Qc2 {[%emt 0:00:34]} Qa5 {[%emt 0:09:10]} 15. Rd1 {[%emt 0:01:51]} cxd5 {[%emt 0:02:41]} 16. exd5 {[%emt 0:00:55]} Nc8 {[%emt 0:02:56]} 17. Nbd2 {[%emt 0:02:24]} Bc4 {[%emt 0:10:25]} 18. Nxc4 {[%emt 0:08:34]} Rxc4 {[%emt 0:01:54]} 19. Qf5 {[%emt 0:00:58]} Nd6 {[%emt 0:04:59]} 20. Qe6+ {[%emt 0:01:12]} Be7 {[%emt 0:02:11]} 21. Rb1 {[%emt 0:01:06]} Qc7 {[%emt 0:02:32]} 22. Ba3 {[%emt 0:05:35]} Kd8 {[%emt 0:06:24]} 23. Nd2 {[%emt 0:07:46]} Ra4 {[%emt 0:06:22]} 24. Bc5 {[%emt 0:01:17]} Nc8 {[%emt 0:02:25]} 25. d6 {[%emt 0:01:24]} Bxd6 {[%emt 0:02:25]} 26. Bxd6 {[%emt 0:01:09]} Nxd6 {[%emt 0:00:24]} 27. Ne4 {[%emt 0:00:22]} 1-0

[Event "FIDE WYCC Girls U14 2023"]
[Site "Montesilvano"]
[Date "2023.11.24"]
[Round "11.3"]
[White "Derlich, Sarah Sima"]
[Black "Lyutsinger, Iren"]
[Result "0-1"]
[ECO "B52"]
[WhiteElo "1745"]
[BlackElo "2020"]
[Annotator "NA RC"]
[PlyCount "144"]
[EventDate "2023.11.13"]
[EventType "swiss"]
[EventCountry "ITA"]
[SourceTitle "playchess.com"]
[Source "ChessBase"]
[SourceQuality "1"]
[TimeControl "40/5400+30:1800+30"]

1. e4 {[%emt 0:00:02]} c5 {[%emt 0:02:14]} 2. Nf3 {[%emt 0:00:07]} d6 {[%emt 0:00:04]} 3. Bb5+ {[%emt 0:00:07]} Bd7 {[%emt 0:00:05]} 4. Bxd7+ {[%emt 0:00:09]} Qxd7 {[%emt 0:00:05]} 5. c4 {[%emt 0:00:08]} Nf6 {[%emt 0:00:04]} 6. Nc3 {[%emt 0:00:08]} Nc6 {[%emt 0:00:03]} 7. d3 {[%emt 0:00:12]} g6 {[%emt 0:01:38]} 8. O-O {[%emt 0:00:09]} Bg7 {[%emt 0:00:03]} 9. a3 {[%emt 0:00:08]} O-O {[%emt 0:01:20]} 10. Rb1 {[%emt 0:00:05]} a5 {[%emt 0:01:44]} 11. Bg5 {[%emt 0:08:03]} Rab8 {[%emt 0:02:35]} 12. Qd2 {[%emt 0:04:51]} Rfe8 {[%emt 0:13:44]} 13. Rfe1 {[%emt 0:04:18]} e6 {[%emt 0:02:45]} 14. Bf4 {[%emt 0:12:10]} Rbd8 {[%emt 0:02:20]} 15. e5 {[%emt 0:07:18]} dxe5 {[%emt 0:03:48]} 16. Nxe5 {[%emt 0:01:33]} Nxe5 {[%emt 0:00:35]} 17. Rxe5 {[%emt 0:01:17]} Nh5 {[%emt 0:18:30]} 18. Rxc5 {[%emt 0:09:32]} Nxf4 {[%emt 0:01:08]} 19. Qxf4 {[%emt 0:00:30]} Qxd3 {[%emt 0:00:15]} 20. Qe4 {[%emt 0:06:56]} Bxc3 {[%emt 0:07:53]} 21. Qxd3 {[%emt 0:00:11]} Rxd3 {[%emt 0:00:03]} 22. bxc3 {[%emt 0:00:07]} Rxc3 {[%emt 0:00:25]} 23. Kf1 {[%emt 0:11:45]} Rd8 {[%emt 0:04:04]} 24. Rb2 {[%emt 0:11:30]} Rxa3 {[%emt 0:02:56]} 25. Rc7 {[%emt 0:02:22]} b6 {[%emt 0:01:53]} 26. Ke2 {[%emt 0:04:41]} Rd4 {[%emt 0:09:40]} 27. Rxb6 {[%emt 0:01:55]} Rc3 {[%emt 0:03:48]} 28. Rbb7 {[%emt 0:04:48]} Rf4 {[%emt 0:00:44]} 29. c5 {[%emt 0:02:29]} a4 {[%emt 0:01:36]} 30. c6 {[%emt 0:01:35]} a3 {[%emt 0:00:34]} 31. Rc8+ {[%emt 0:01:11]} Kg7 {[%emt 0:00:01]} 32. Ra7 {[%emt 0:02:05]} Rfc4 {[%emt 0:03:27]} 33. Rcc7 {[%emt 0:01:14]} Kf6 {[%emt 0:01:15]} 34. Rxf7+ {[%emt 0:00:48]} Ke5 {[%emt 0:00:00]} 35. Ra5+ {[%emt 0:02:06]} Kd6 {[%emt 0:00:33]} 36. g3 {[%emt 0:01:26]} Rb3 {[%emt 0:01:59]} 37. Rfa7 {[%emt 0:00:26]} Rc2+ {[%emt 0:01:28]} 38. Kf1 {[%emt 0:00:15]} Rbb2 {[%emt 0:00:01]} 39. Rxa3 {[%emt 0:00:47]} Rxf2+ {[%emt 0:00:06]} 40. Kg1 {[%emt 0:00:00]} Rg2+ {[%emt 0:00:00]} 41. Kf1 {[%emt 0:03:49]} Rxh2 {[%emt 0:01:23]} 42. Kg1 {[%emt 0:02:05]} Rhd2 {[%emt 0:03:56]} 43. Rd7+ {[%emt 0:02:24]} Kxc6 {[%emt 0:01:11]} 44. Rxd2 {[%emt 0:00:08]} Rxd2 {[%emt 0:00:01]} 45. Ra6+ {[%emt 0:00:10]} Kd5 {[%emt 0:00:52]} 46. Ra7 {[%emt 0:00:09]} Ke4 {[%emt 0:02:42]} 47. Rxh7 {[%emt 0:01:33]} g5 {[%emt 0:01:45]} 48. Rf7 {[%emt 0:01:00]} Ra2 {[%emt 0:03:26]} 49. Rb7 {[%emt 0:01:52]} Rd2 {[%emt 0:13:38]} 50. Rf7 {[%emt 0:02:16]} Rd4 {[%emt 0:01:41]} 51. Kf2 {[%emt 0:01:25]} Ra4 {[%emt 0:01:05]} 52. Rb7 {[%emt 0:01:07]} g4 {[%emt 0:01:37]} 53. Rb2 {[%emt 0:01:58]} e5 {[%emt 0:02:03]} 54. Rd2 {[%emt 0:02:24]} Ra3 {[%emt 0:00:35]} 55. Re2+ {[%emt 0:01:34]} Kd4 {[%emt 0:00:24]} 56. Rd2+ {[%emt 0:00:44]} Rd3 {[%emt 0:00:37]} 57. Ra2 {[%emt 0:00:49]} Rf3+ {[%emt 0:00:31]} 58. Kg2 {[%emt 0:00:46]} Rc3 {[%emt 0:00:48]} 59. Kf2 {[%emt 0:01:30]} Kd3 {[%emt 0:00:33]} 60. Re2 {[%emt 0:00:55]} Rc5 {[%emt 0:00:59]} 61. Re3+ {[%emt 0:00:27]} Kd4 {[%emt 0:00:14]} 62. Re2 {[%emt 0:00:44]} Rc3 {[%emt 0:02:32]} 63. Rd2+ {[%emt 0:01:06]} Rd3 {[%emt 0:02:51]} 64. Ra2 {[%emt 0:00:09]} Rf3+ {[%emt 0:00:09]} 65. Kg2 {[%emt 0:00:17]} Rc3 {[%emt 0:00:17]} 66. Kf2 {[%emt 0:00:05]} e4 {[%emt 0:00:15]} 67. Ra4+ {[%emt 0:02:31]} Kd3 {[%emt 0:00:47]} 68. Ra2 {[%emt 0:01:17]} e3+ {[%emt 0:00:05]} 69. Kf1 {[%emt 0:04:30]} Rc1+ {[%emt 0:00:05]} 70. Kg2 {[%emt 0:00:10]} Rc2+ {[%emt 0:00:08]} 71. Rxc2 {[%emt 0:00:18]} Kxc2 {[%emt 0:00:02]} 72. Kf1 {[%emt 0:00:09]} Kd2 {[%emt 0:00:04]} 0-1

[Event "FIDE WYCC Girls U14 2023"]
[Site "Montesilvano"]
[Date "2023.11.24"]
[Round "11.5"]
[White "Trunz, Tamila"]
[Black "Nurgaliyeva, Zarina"]
[Result "0-1"]
[ECO "C84"]
[WhiteElo "1732"]
[BlackElo "2104"]
[Annotator "NA RC"]
[PlyCount "50"]
[EventDate "2023.11.13"]
[EventType "swiss"]
[EventCountry "ITA"]
[SourceTitle "playchess.com"]
[Source "ChessBase"]
[SourceQuality "1"]
[TimeControl "40/5400+30:1800+30"]

1. e4 {[%emt 0:00:02]} e5 {[%emt 0:00:33]} 2. Nf3 {[%emt 0:00:05]} Nc6 {[%emt 0:00:04]} 3. Bb5 {[%emt 0:00:05]} a6 {[%emt 0:00:24]} 4. Ba4 {[%emt 0:00:06]} Nf6 {[%emt 0:00:09]} 5. O-O {[%emt 0:00:10]} Be7 {[%emt 0:00:11]} 6. d3 {[%emt 0:04:41]} b5 {[%emt 0:00:26]} 7. Bb3 {[%emt 0:00:10]} d6 {[%emt 0:00:23]} 8. a3 {[%emt 0:08:35]} O-O {[%emt 0:00:12]} 9. Re1 {[%emt 0:00:48]} Be6 {[%emt 0:00:32]} 10. Bxe6 {[%emt 0:02:57]} fxe6 {[%emt 0:00:02]} 11. c4 {[%emt 0:06:42]} d5 {[%emt 0:08:51]} 12. exd5 {[%emt 0:03:15]} exd5 {[%emt 0:02:51]} 13. cxb5 {[%emt 0:03:32]} axb5 {[%emt 0:00:04]} 14. Nxe5 {[%emt 0:01:44]} Nxe5 {[%emt 0:00:08]} 15. Rxe5 {[%emt 0:00:06]} Bd6 {[%emt 0:00:01]} 16. Re1 {[%emt 0:05:27]} Qd7 {[%emt 0:05:51]} 17. h3 {[%emt 0:01:16]} Qf5 {[%emt 0:02:45]} 18. Re3 {[%emt 0:31:10]} Ng4 {[%emt 0:14:57]} 19. Rf3 {[%emt 0:01:28]} Qe5 {[%emt 0:00:08]} 20. Rxf8+ {[%emt 0:07:23]} Rxf8 {[%emt 0:00:11]} 21. hxg4 {[%emt 0:00:59]} Qh2+ {[%emt 0:00:09]} 22. Kf1 {[%emt 0:00:07]} Qh1+ {[%emt 0:00:07]} 23. Ke2 {[%emt 0:00:23]} Rxf2+ {[%emt 0:00:05]} 24. Kxf2 {[%emt 0:00:27]} Qxd1 {[%emt 0:00:04]} 25. Be3 {[%emt 0:05:36]} Be5 {[%emt 0:00:22]} 0-1

[Event "FIDE WYCC Girls U14 2023"]
[Site "Montesilvano"]
[Date "2023.11.24"]
[Round "11.6"]
[White "Smietanska, Wiktoria"]
[Black "Huseynova, Lala"]
[Result "1-0"]
[ECO "B90"]
[WhiteElo "2009"]
[BlackElo "1867"]
[Annotator "NA RC"]
[PlyCount "93"]
[EventDate "2023.11.13"]
[EventType "swiss"]
[EventCountry "ITA"]
[SourceTitle "playchess.com"]
[Source "ChessBase"]
[SourceQuality "1"]
[TimeControl "40/5400+30:1800+30"]

1. e4 {[%emt 0:00:03]} c5 {[%emt 0:01:20]} 2. Nf3 {[%emt 0:00:07]} d6 {[%emt 0:00:07]} 3. d4 {[%emt 0:00:06]} cxd4 {[%emt 0:00:24]} 4. Nxd4 {[%emt 0:00:05]} Nf6 {[%emt 0:00:03]} 5. Nc3 {[%emt 0:00:08]} a6 {[%emt 0:00:05]} 6. Be3 {[%emt 0:00:09]} e5 {[%emt 0:01:43]} 7. Nb3 {[%emt 0:00:12]} Be6 {[%emt 0:02:06]} 8. h3 {[%emt 0:00:10]} Be7 {[%emt 0:04:29]} 9. f4 {[%emt 0:00:13]} exf4 {[%emt 0:02:21]} 10. Bxf4 {[%emt 0:00:07]} Nc6 {[%emt 0:01:54]} 11. Qe2 {[%emt 0:00:37]} Ne5 {[%emt 0:01:23]} 12. O-O-O {[%emt 0:02:44]} Qc7 {[%emt 0:03:32]} 13. Kb1 {[%emt 0:05:21]} Rc8 {[%emt 0:01:44]} 14. g4 {[%emt 0:05:04]} b5 {[%emt 0:08:07]} 15. g5 {[%emt 0:07:23]} Nfd7 {[%emt 0:01:25]} 16. Nd4 {[%emt 0:02:58]} Nc4 {[%emt 0:08:38]} 17. Nd5 {[%emt 0:05:15]} Bxd5 {[%emt 0:02:05]} 18. exd5 {[%emt 0:00:15]} Nde5 {[%emt 0:04:09]} 19. Nf5 {[%emt 0:04:42]} Nxb2 {[%emt 0:12:57]} 20. Bxe5 {[%emt 0:13:27]} dxe5 {[%emt 0:04:46]} 21. d6 {[%emt 0:05:16]} Nxd1 {[%emt 0:02:11]} 22. Qxd1 {[%emt 0:00:31]} Qd7 {[%emt 0:16:09]} 23. Nxe7 {[%emt 0:03:53]} Rd8 {[%emt 0:00:16]} 24. Bg2 {[%emt 0:04:32]} Qxd6 {[%emt 0:00:21]} 25. Qxd6 {[%emt 0:00:09]} Rxd6 {[%emt 0:00:02]} 26. Nf5 {[%emt 0:01:36]} Rg6 {[%emt 0:06:21]} 27. Rd1 {[%emt 0:02:27]} h6 {[%emt 0:11:59]} 28. h4 {[%emt 0:01:19]} hxg5 {[%emt 0:00:42]} 29. hxg5 {[%emt 0:00:55]} Rg8 {[%emt 0:01:29]} 30. Be4 {[%emt 0:02:18]} Rb6 {[%emt 0:00:45]} 31. Rd5 {[%emt 0:01:46]} Re6 {[%emt 0:00:39]} 32. Rc5 {[%emt 0:04:24]} Kd8 {[%emt 0:01:12]} 33. Bd5 {[%emt 0:00:11]} Rb6 {[%emt 0:00:19]} 34. Bxf7 {[%emt 0:00:15]} Rf8 {[%emt 0:00:02]} 35. g6 {[%emt 0:00:25]} Rf6 {[%emt 0:00:22]} 36. Nxg7 {[%emt 0:02:09]} R8xf7 {[%emt 0:00:41]} 37. gxf7 {[%emt 0:00:45]} Rxf7 {[%emt 0:00:00]} 38. Ne6+ {[%emt 0:00:38]} Kd7 {[%emt 0:00:43]} 39. Rxe5 {[%emt 0:00:44]} Kd6 {[%emt 0:00:12]} 40. Re2 {[%emt 0:00:00]} Kd5 {[%emt 0:00:00]} 41. Kb2 {[%emt 0:01:58]} a5 {[%emt 0:01:00]} 42. Ng5 {[%emt 0:00:28]} Rf4 {[%emt 0:00:11]} 43. Rd2+ {[%emt 0:01:59]} Ke5 {[%emt 0:00:19]} 44. Rd3 {[%emt 0:00:44]} Ra4 {[%emt 0:00:33]} 45. Rb3 {[%emt 0:00:24]} b4 {[%emt 0:00:09]} 46. Rd3 {[%emt 0:00:39]} Kf4 {[%emt 0:00:17]} 47. Ne6+ {[%emt 0:00:05]} 1-0

[Event "FIDE WYCC Girls U14 2023"]
[Site "Montesilvano"]
[Date "2023.11.24"]
[Round "11.7"]
[White "Nguyen, Thuy Linh"]
[Black "Goriachkina, Oksana"]
[Result "0-1"]
[ECO "D02"]
[WhiteElo "1398"]
[BlackElo "1915"]
[Annotator "NA RC"]
[PlyCount "56"]
[EventDate "2023.11.13"]
[EventType "swiss"]
[EventCountry "ITA"]
[SourceTitle "playchess.com"]
[Source "ChessBase"]
[SourceQuality "1"]
[TimeControl "40/5400+30:1800+30"]

1. d4 {[%emt 0:00:02]} d5 {[%emt 0:00:03]} 2. Nf3 {[%emt 0:00:20]} Nf6 {[%emt 0:00:11]} 3. c4 {[%emt 0:00:08]} e6 {[%emt 0:00:04]} 4. g3 {[%emt 0:00:30]} c6 {[%emt 0:01:43]} 5. Qc2 {[%emt 0:00:18]} Bd6 {[%emt 0:05:29]} 6. Bg2 {[%emt 0:00:16]} Nbd7 {[%emt 0:00:18]} 7. O-O {[%emt 0:00:14]} O-O {[%emt 0:02:35]} 8. Nfd2 {[%emt 0:00:31]} e5 {[%emt 0:05:01]} 9. cxd5 {[%emt 0:03:29]} cxd5 {[%emt 0:09:01]} 10. dxe5 {[%emt 0:01:37]} Nxe5 {[%emt 0:00:04]} 11. Nf3 {[%emt 0:02:00]} Bg4 {[%emt 0:02:02]} 12. Nd4 {[%emt 0:01:18]} Qb6 {[%emt 0:01:30]} 13. Nb3 {[%emt 0:05:43]} Rac8 {[%emt 0:03:31]} 14. Qd1 {[%emt 0:01:55]} Nc4 {[%emt 0:02:15]} 15. h3 {[%emt 0:03:34]} Be6 {[%emt 0:02:13]} 16. e3 {[%emt 0:00:57]} Be5 {[%emt 0:08:19]} 17. Qe2 {[%emt 0:01:43]} Ne4 {[%emt 0:00:26]} 18. Rd1 {[%emt 0:00:55]} Rfe8 {[%emt 0:09:07]} 19. Nd4 {[%emt 0:02:56]} Bd7 {[%emt 0:05:45]} 20. b3 {[%emt 0:01:54]} Bxd4 {[%emt 0:05:52]} 21. Rxd4 {[%emt 0:01:49]} Nxg3 {[%emt 0:00:55]} 22. Qd1 {[%emt 0:03:50]} Ne2+ {[%emt 0:00:14]} 23. Kh2 {[%emt 0:00:18]} Nxd4 {[%emt 0:01:20]} 24. bxc4 {[%emt 0:00:55]} Nc2 {[%emt 0:05:46]} 25. Qxc2 {[%emt 0:00:28]} Rxc4 {[%emt 0:00:03]} 26. Qd2 {[%emt 0:00:30]} Qc7+ {[%emt 0:00:13]} 27. f4 {[%emt 0:01:24]} Rxc1 {[%emt 0:00:07]} 28. Qd4 {[%emt 0:00:18]} Qb6 {[%emt 0:01:26]} 0-1

[Event "FIDE WYCC Girls U14 2023"]
[Site "Montesilvano"]
[Date "2023.11.24"]
[Round "11.8"]
[White "Tsetskhladze, Mariam"]
[Black "Gaszka, Zuzanna"]
[Result "0-1"]
[ECO "B12"]
[WhiteElo "1911"]
[BlackElo "1758"]
[Annotator "NA RC"]
[PlyCount "54"]
[EventDate "2023.11.13"]
[EventType "swiss"]
[EventCountry "ITA"]
[SourceTitle "playchess.com"]
[Source "ChessBase"]
[SourceQuality "1"]
[TimeControl "40/5400+30:1800+30"]

1. e4 {[%emt 0:00:58]} c6 {[%emt 0:00:02]} 2. d4 {[%emt 0:00:04]} d5 {[%emt 0:00:03]} 3. e5 {[%emt 0:00:05]} Bf5 {[%emt 0:00:05]} 4. Nd2 {[%emt 0:00:09]} e6 {[%emt 0:00:08]} 5. Nb3 {[%emt 0:00:03]} Nd7 {[%emt 0:00:09]} 6. Nf3 {[%emt 0:00:05]} Qc7 {[%emt 0:00:04]} 7. Be2 {[%emt 0:00:12]} f6 {[%emt 0:00:16]} 8. Bf4 {[%emt 0:14:35]} fxe5 {[%emt 0:00:17]} 9. dxe5 {[%emt 0:01:03]} Ne7 {[%emt 0:01:23]} 10. Nbd4 {[%emt 0:01:36]} Ng6 {[%emt 0:11:20]} 11. Bg3 {[%emt 0:02:35]} Ndxe5 {[%emt 0:04:04]} 12. Nxe5 {[%emt 0:02:54]} Nxe5 {[%emt 0:00:22]} 13. Nxf5 {[%emt 0:00:07]} exf5 {[%emt 0:00:20]} 14. Bh5+ {[%emt 0:02:20]} g6 {[%emt 0:02:40]} 15. Qe2 {[%emt 0:01:57]} Bg7 {[%emt 0:04:14]} 16. f4 {[%emt 0:02:08]} O-O {[%emt 0:08:04]} 17. fxe5 {[%emt 0:01:33]} f4 {[%emt 0:00:52]} 18. Bh4 {[%emt 0:21:01]} Rf5 {[%emt 0:05:57]} 19. O-O-O {[%emt 0:06:05]} Rxe5 {[%emt 0:03:19]} 20. Qg4 {[%emt 0:02:14]} Rxh5 {[%emt 0:00:09]} 21. Rhe1 {[%emt 0:00:57]} Qc8 {[%emt 0:01:24]} 22. Qxc8+ {[%emt 0:10:50]} Rxc8 {[%emt 0:00:05]} 23. Bf2 {[%emt 0:00:11]} Rxh2 {[%emt 0:00:54]} 24. Re7 {[%emt 0:01:15]} Rxg2 {[%emt 0:01:52]} 25. Bxa7 {[%emt 0:00:09]} b5 {[%emt 0:01:39]} 26. Rf1 {[%emt 0:02:20]} g5 {[%emt 0:01:33]} 27. Bc5 {[%emt 0:01:58]} Bf8 {[%emt 0:00:13]} 0-1